bitfinex/quotes_SOLUSD_20220228
["timestamp","ask_amount","ask_price","bid_price","bid_amount"]
[1646030422071,115.3,86.666,86.579,6.0]
[1646030422271,115.3,86.675,86.579,8.96447595]
[1646030422470,6.0,86.674,86.58,2.74678921]
[1646030422669,6.0,86.674,86.581,6.0]
[1646030423071,6.0,86.674,86.582,2.74678921]
[1646030423271,121.3,86.678,86.583,6.0]
[1646030423680,121.3,86.678,86.584,2.74678921]
[1646030423871,6.0,86.678,86.585,6.0]
[1646030424271,6.0,86.678,86.585,8.74678921]
[1646030424470,6.0,86.678,86.586,23.9473]
[1646030424671,24.0738,86.679,86.587,8.64881372]
[1646030424870,6.0,86.678,86.587,8.64881372]
[1646030425071,24.0738,86.679,86.588,2.74678921]
[1646030425270,6.0,86.678,86.589,6.0]
[1646030425472,24.0738,86.679,86.589,6.0]
[1646030425671,24.0738,86.679,86.59,2.74678921]
[1646030425872,115.3,86.705,86.59,2.74678921]
[1646030425873,16.64,86.7,86.591,6.0]
[1646030426072,1.77942854,86.692,86.591,6.0]
[1646030426275,1.77942854,86.692,86.592,2.74678921]
[1646030426472,1.77942854,86.692,86.593,6.0]
[1646030427673,16.64,86.69,86.593,6.0]
[1646030428473,16.64,86.69,86.588,6.0]
[1646030428673,115.3,86.686,86.588,6.0]
[1646030428876,121.3,86.685,86.588,8.74678921]
[1646030429273,1.60402747,86.684,86.588,8.74678921]
[1646030429474,1.65646044,86.681,86.586,23.9473]
[1646030429674,1.44319358,86.678,86.586,23.9473]
[1646030429879,22.64,86.68,86.586,23.9473]
[1646030429880,1.42488274,86.675,86.586,23.9473]
[1646030430074,1.63719491,86.672,86.586,23.9473]
[1646030430277,115.3,86.67,86.586,23.9473]
[1646030430478,1.39399515,86.669,86.586,23.9473]
[1646030431808,115.3,86.667,86.586,23.9473]
[1646030432004,115.3,86.665,86.586,23.9473]
[1646030432204,115.3,86.663,86.586,23.9473]
[1646030432404,1.77726157,86.66,86.586,23.9473]
[1646030432605,115.3,86.658,86.586,23.9473]
[1646030432803,18.41726157,86.66,86.575,23.1096]
[1646030432804,1.72350542,86.655,86.575,23.1096]
[1646030433005,115.3,86.653,86.575,23.1096]
[1646030433206,1.48168011,86.652,86.559,24.544]
[1646030433405,1.82473642,86.649,86.559,24.544]
[1646030433605,1.40616022,86.646,86.559,24.544]
[1646030434007,6.0,86.645,86.559,24.544]
[1646030434205,6.0,86.645,86.56,29.36527116]
[1646030435206,1.83968799,86.643,86.56,29.36527116]
[1646030435408,1.85027504,86.64,86.56,29.36527116]
[1646030435607,1.70420358,86.637,86.56,29.36527116]
[1646030435808,1.36084914,86.635,86.56,29.36527116]
[1646030436306,1.60016833,86.645,86.56,29.36527116]
[1646030436509,6.0,86.644,86.561,2.74678921]
[1646030436906,6.0,86.644,86.562,6.0]
[1646030437107,6.0,86.644,86.561,2.74678921]
[1646030437307,27.3723,86.659,86.561,5.10258416]
[1646030437510,27.3723,86.659,86.563,2.74678921]
[1646030437511,22.7543,86.659,86.563,2.74678921]
[1646030437707,6.0,86.653,86.564,6.0]
[1646030437911,6.0,86.653,86.564,35.99899051]
[1646030438108,6.0,86.653,86.565,5.63250442]
[1646030438310,6.0,86.653,86.566,6.0]
[1646030438508,6.0,86.653,86.566,8.74678921]
[1646030438713,1.3794418,86.679,86.567,5.17965985]
[1646030438917,1.3794418,86.679,86.568,6.0]
[1646030439117,1.3794418,86.679,86.568,8.74678921]
[1646030439316,1.3794418,86.679,86.57,2.89281349]
[1646030439516,116.6794418,86.679,86.571,6.0]
[1646030439718,116.6794418,86.679,86.571,8.74678921]
[1646030439916,115.3,86.67,86.572,2.74678921]
[1646030440116,6.0,86.653,86.572,2.74678921]
[1646030440319,6.0,86.653,86.561,2.3452321]
[1646030440519,6.0,86.653,86.562,6.0]
[1646030440919,6.0,86.653,86.561,2.76071425]
[1646030441219,7.43065753,86.653,86.561,2.59575332]
[1646030441820,17.3301,86.65,86.562,6.0]
[1646030442018,6.0,86.649,86.562,6.0]
[1646030442419,1.63397227,86.649,86.562,6.0]
[1646030443022,6.0,86.648,86.561,2.59575332]
[1646030443221,115.3,86.647,86.561,2.59575332]
[1646030443426,122.83895827,86.646,86.562,6.0]
[1646030443630,122.83895827,86.646,86.561,2.59575332]
[1646030443823,6.0,86.646,86.561,2.59575332]
[1646030444026,6.0,86.649,86.562,6.0]
[1646030445226,115.3,86.648,86.562,6.0]
[1646030445431,115.3,86.646,86.562,6.0]
[1646030445628,6.0,86.645,86.562,6.0]
[1646030446027,6.0,86.645,86.561,2.59575332]
[1646030446228,115.3,86.644,86.561,2.59575332]
[1646030446429,115.3,86.639,86.56,29.36527116]
[1646030446629,1.67413426,86.636,86.56,29.36527116]
[1646030446830,115.3,86.634,86.56,29.36527116]
[1646030447028,6.0,86.633,86.56,29.36527116]
[1646030447229,6.0,86.635,86.561,2.97743298]
[1646030447428,33.9695,86.66,86.562,6.0]
[1646030447629,6.0,86.653,86.562,6.0]
[1646030448433,6.0,86.653,86.57,17.3264]
[1646030448641,6.0,86.653,86.571,8.41763649]
[1646030448832,6.0,86.653,86.572,22.8494]
[1646030449034,6.0,86.653,86.573,8.82106229]
[1646030450460,115.3,86.679,86.58,17.3241]
[1646030450659,140.2231,86.679,86.581,8.87857815]
[1646030450860,6.0,86.67,86.581,33.11007815]
[1646030451057,6.0,86.67,86.582,5.07689519]
[1646030451262,6.0,86.67,86.583,6.0]
[1646030451459,56.99215943,86.669,86.584,23.735]
[1646030451657,56.99215943,86.669,86.586,3.18611299]
[1646030451859,56.99215943,86.669,86.587,6.0]
[1646030452063,24.9231,86.679,86.587,6.0]
[1646030452260,22.7323,86.696,86.591,2.85870826]
[1646030452459,22.7323,86.696,86.592,6.0]
[1646030452660,22.7323,86.696,86.592,8.74678921]
[1646030452859,22.7323,86.696,86.592,6.0]
[1646030453060,47.26818727,86.695,86.593,2.74678921]
[1646030453264,47.26818727,86.695,86.594,6.0]
[1646030453460,47.26818727,86.695,86.61,17.3171]
[1646030453660,47.26818727,86.695,86.612,31.168609]
[1646030453861,47.26818727,86.695,86.613,8.51380918]
[1646030454065,115.3,86.693,86.595,2.74678921]
[1646030454263,115.3,86.693,86.448,72.96867271]
[1646030454264,6.0,86.692,86.596,6.0]
[1646030454563,6.0,86.692,86.587,2.74678921]
[1646030454564,1.41296916,86.689,86.574,2.54247399]
[1646030454861,17.3277,86.66,86.574,2.54247399]
[1646030455060,115.3,86.657,86.574,2.54247399]
[1646030455261,115.3,86.657,86.573,47.6687]
[1646030455262,1.53666847,86.654,86.573,47.6687]
[1646030455461,115.3,86.652,86.573,47.6687]
[1646030455661,1.38125492,86.649,86.573,47.6687]
[1646030455861,115.3,86.647,86.573,47.6687]
[1646030456062,121.3,86.646,86.573,47.6687]
[1646030456261,115.3,86.646,86.573,47.6687]
[1646030456464,6.0,86.645,86.573,47.6687]
[1646030457362,115.3,86.646,86.573,47.6687]
[1646030457562,6.0,86.645,86.573,47.6687]
[1646030458766,4.618,86.66,86.573,47.6687]
[1646030458966,1.37425982,86.669,86.574,8.83580089]
[1646030459167,39.8327,86.67,86.574,8.83580089]
[1646030459367,22.5059,86.67,86.574,8.83580089]
[1646030460467,22.5059,86.67,86.58,17.324]
[1646030460671,115.3,86.657,86.581,8.27847752]
[1646030460866,121.3,86.656,86.574,8.45020192]
[1646030463769,16.64,86.66,86.574,8.45020192]
[1646030463969,22.5059,86.67,86.574,8.45020192]
[1646030464169,22.5059,86.67,86.575,2.74678921]
[1646030464370,22.5059,86.67,86.576,6.0]
[1646030464770,22.5059,86.67,86.577,2.74678921]
[1646030464973,6.0,86.669,86.578,6.0]
[1646030465372,6.0,86.669,86.579,2.74678921]
[1646030465572,6.0,86.669,86.58,23.3239]
[1646030465775,6.0,86.669,86.581,2.53601524]
[1646030466076,22.5059,86.67,86.582,6.0]
[1646030466272,115.3,86.688,86.582,11.48893023]
[1646030466571,115.3,86.686,86.583,2.74678921]
[1646030466771,6.0,86.685,86.584,6.0]
[1646030466973,45.7377918,86.684,86.586,2.51629104]
[1646030467175,6.0,86.683,86.587,6.0]
[1646030467577,6.0,86.683,86.601,10.74326092]
[1646030467773,6.0,86.683,86.603,2.76358376]
[1646030467972,6.0,86.683,86.604,6.0]
[1646030468174,1.64476635,86.681,86.604,6.0]
[1646030468376,1.64509822,86.678,86.602,24.0669]
[1646030468575,1.66154812,86.668,86.601,8.37436003]
[1646030468778,115.3,86.666,86.601,8.37436003]
[1646030468973,6.0,86.665,86.601,8.37436003]
[1646030469875,6.0,86.667,86.601,8.37436003]
[1646030470375,6.0,86.669,86.601,8.37436003]
[1646030470776,16.64,86.67,86.601,8.37436003]
[1646030471075,115.3,86.686,86.602,6.0]
[1646030471274,6.0,86.682,86.602,6.0]
[1646030471477,115.3,86.686,86.602,6.0]
[1646030471675,6.0,86.682,86.602,6.0]
[1646030472475,6.0,86.682,86.604,2.48493189]
[1646030472679,6.0,86.682,86.605,6.0]
[1646030474276,115.3,86.689,86.605,6.0]
[1646030474476,6.0,86.682,86.605,6.0]
[1646030475077,6.0,86.682,86.603,6.0]
[1646030475282,6.0,86.682,86.602,6.0]
[1646030475678,6.0,86.682,86.603,24.4849]
[1646030475879,6.0,86.682,86.604,8.44824718]
[1646030476589,115.3,86.679,86.604,6.0]
[1646030476785,115.3,86.677,86.603,24.4849]
[1646030477004,121.3,86.676,86.603,24.4849]
[1646030477387,124.04678921,86.676,86.603,24.4849]
[1646030477587,2.74678921,86.675,86.603,24.4849]
[1646030477787,6.0,86.674,86.603,24.4849]
[1646030478186,115.3,86.673,86.603,24.4849]
[1646030478385,115.3,86.671,86.603,24.4849]
[1646030478587,115.3,86.669,86.603,24.4849]
[1646030478785,115.3,86.667,86.603,24.4849]
[1646030478987,121.3,86.666,86.603,24.4849]
[1646030479388,124.04678921,86.666,86.603,24.4849]
[1646030479789,2.74678921,86.665,86.603,24.4849]
[1646030479989,115.3,86.659,86.576,3.01580698]
[1646030480190,115.3,86.657,86.557,28.13336013]
[1646030480391,1.48818511,86.654,86.557,28.13336013]
[1646030480591,115.3,86.649,86.557,28.13336013]
[1646030480790,115.3,86.647,86.557,28.13336013]
[1646030480992,1.46528454,86.644,86.557,28.13336013]
[1646030481191,115.3,86.639,86.557,28.13336013]
[1646030481391,115.3,86.637,86.557,28.13336013]
[1646030481591,6.0,86.636,86.557,28.13336013]
[1646030481793,2.74678921,86.636,86.561,27.30966472]
[1646030481994,6.0,86.635,86.561,27.30966472]
[1646030482192,6.0,86.635,86.562,23.4927]
[1646030482697,6.0,86.639,86.562,23.4927]
[1646030482899,16.64,86.64,86.563,23.3731]
[1646030483096,49.37468421,86.658,86.564,2.33848402]
[1646030483298,49.37468421,86.658,86.575,2.63612829]
[1646030483497,6.0,86.657,86.576,6.0]
[1646030483711,115.3,86.656,86.576,6.0]
[1646030483911,115.3,86.654,86.576,6.0]
[1646030484111,1.47318044,86.648,86.574,24.4881]
[1646030484513,6.0,86.647,86.574,24.4881]
[1646030484710,115.3,86.646,86.574,24.4881]
[1646030484910,115.3,86.644,86.574,24.4881]
[1646030485110,1.40983456,86.641,86.574,24.4881]
[1646030485310,115.3,86.639,86.574,24.4881]
[1646030485515,23.332,86.64,86.574,24.4881]
[1646030485516,115.3,86.637,86.574,24.4881]
[1646030485711,115.3,86.635,86.574,24.4881]
[1646030485912,115.3,86.631,86.574,24.4881]
[1646030486113,115.3,86.629,86.574,24.4881]
[1646030486312,115.3,86.627,86.574,24.4881]
[1646030486513,121.3,86.626,86.574,24.4881]
[1646030486813,6.0,86.626,86.574,24.4881]
[1646030487213,6.0,86.631,86.563,23.3731]
[1646030487413,115.3,86.63,86.563,23.3731]
[1646030487612,115.3,86.628,86.563,23.3731]
[1646030487812,115.3,86.626,86.563,23.3731]
[1646030488019,6.0,86.625,86.563,23.3731]
[1646030489013,115.3,86.627,86.563,23.3731]
[1646030489221,121.3,86.626,86.563,23.3731]
[1646030489413,6.0,86.628,86.563,23.3731]
[1646030489919,6.0,86.629,86.563,23.3731]
[1646030490314,115.3,86.628,86.563,23.3731]
[1646030490516,121.3,86.627,86.564,2.71236619]
[1646030490714,115.3,86.619,86.537,2.59609892]
[1646030490917,115.3,86.617,86.536,24.5573]
[1646030491114,115.3,86.615,86.536,24.5573]
[1646030491315,115.3,86.613,86.536,24.5573]
[1646030491515,115.3,86.611,86.536,24.5573]
[1646030491719,115.3,86.609,86.537,26.93699808]
[1646030491917,115.3,86.607,86.537,26.93699808]
[1646030492116,66.85931769,86.606,86.537,26.93699808]
[1646030493017,60.85931769,86.606,86.538,3.10669795]
[1646030493214,2.74678921,86.623,86.539,6.0]
[1646030493417,1.52079956,86.639,86.539,6.0]
[1646030493418,6.0,86.622,86.539,6.0]
[1646030493715,115.3,86.639,86.54,2.74678921]
[1646030493916,115.3,86.637,86.541,6.0]
[1646030494116,2.74678921,86.626,86.541,6.0]
[1646030494318,6.0,86.625,86.538,3.10669795]
[1646030494521,6.0,86.625,86.539,6.0]
[1646030494717,2.74678921,86.624,86.539,6.0]
[1646030494916,6.0,86.623,86.539,6.0]
[1646030495318,2.74678921,86.622,86.539,6.0]
[1646030495620,6.0,86.621,86.539,6.0]
[1646030496017,2.74678921,86.62,86.539,6.0]
[1646030496216,6.0,86.619,86.539,6.0]
[1646030496617,2.74678921,86.618,86.539,6.0]
[1646030496817,6.0,86.617,86.539,6.0]
[1646030497220,8.74678921,86.617,86.539,6.0]
[1646030497416,8.74678921,86.617,86.538,3.10669795]
[1646030497618,8.74678921,86.617,86.539,6.0]
[1646030499322,8.74678921,86.617,86.538,3.10669795]
[1646030499923,8.74678921,86.617,86.539,6.0]
[1646030500125,124.04678921,86.617,86.539,6.0]
[1646030500325,8.74678921,86.617,86.538,3.10669795]
[1646030501326,8.74678921,86.617,86.539,6.0]
[1646030502828,8.74678921,86.617,86.538,3.10669795]
[1646030503026,8.74678921,86.617,86.539,6.0]
[1646030504330,8.74678921,86.617,86.538,3.10669795]
[1646030505430,2.74678921,86.617,86.539,6.0]
[1646030505632,2.74678921,86.645,86.541,117.77071554]
[1646030505835,2.74678921,86.645,86.542,6.0]
[1646030506036,23.0287,86.648,86.542,6.0]
[1646030506233,23.0287,86.648,86.542,8.74678921]
[1646030506432,23.0287,86.648,86.543,27.61408921]
[1646030506640,115.3,86.647,86.55,17.329]
[1646030506833,138.2239689,86.647,86.551,8.61974035]
[1646030507034,22.59881826,86.638,86.552,23.9628]
[1646030507236,22.59881826,86.638,86.553,8.53360025]
[1646030507435,2.74678921,86.635,86.553,8.53360025]
[1646030507636,6.0,86.634,86.553,8.53360025]
[1646030508036,2.74678921,86.633,86.553,8.53360025]
[1646030508239,6.0,86.632,86.553,8.53360025]
[1646030508438,115.3,86.631,86.553,8.53360025]
[1646030508638,6.0,86.63,86.553,8.53360025]
[1646030508837,6.0,86.632,86.553,2.53360025]
[1646030510239,115.3,86.631,86.553,2.53360025]
[1646030510442,115.3,86.629,86.553,2.53360025]
[1646030510642,115.3,86.627,86.554,6.0]
[1646030510843,6.0,86.626,86.553,2.53360025]
[1646030511146,8.74678921,86.626,86.553,2.53360025]
[1646030511341,8.74678921,86.626,86.543,24.8673]
[1646030511342,1.4372784,86.624,86.543,24.8673]
[1646030511541,1.78492016,86.621,86.543,24.8673]
[1646030511740,115.3,86.619,86.543,24.8673]
[1646030511943,115.3,86.617,86.543,24.8673]
[1646030512144,7.62702702,86.616,86.543,24.8673]
[1646030512342,10.37381623,86.616,86.543,24.8673]
[1646030512943,8.74678921,86.616,86.543,24.8673]
[1646030513345,8.74678921,86.616,86.544,2.36132358]
[1646030514344,8.74678921,86.616,86.545,6.0]
[1646030514945,8.74678921,86.616,86.544,2.36132358]
[1646030516348,6.0,86.615,86.544,2.36132358]
[1646030516546,6.0,86.615,86.545,6.0]
[1646030516747,6.0,86.625,86.545,6.0]
[1646030518953,115.3,86.624,86.545,6.0]
[1646030519151,115.3,86.622,86.544,2.67328509]
[1646030519351,115.3,86.62,86.543,24.8673]
[1646030519553,115.3,86.618,86.543,24.8673]
[1646030519752,121.3,86.617,86.543,24.8673]
[1646030520354,6.0,86.617,86.543,24.8673]
[1646030520555,6.0,86.625,86.544,2.67788891]
[1646030520754,6.0,86.625,86.545,6.0]
[1646030521353,17.3334,86.64,86.545,6.0]
[1646030521558,2.74678921,86.648,86.55,17.3304]
[1646030521754,22.9113,86.651,86.551,8.6516669]
[1646030521955,24.9719,86.65,86.551,8.74678921]
[1646030522154,24.9719,86.65,86.552,2.74678921]
[1646030522356,24.9719,86.65,86.553,6.0]
[1646030522559,54.15928162,86.649,86.555,2.73978058]
[1646030522757,54.15928162,86.649,86.556,6.0]
[1646030523159,6.0,86.648,86.556,6.0]
[1646030523362,115.3,86.647,86.556,6.0]
[1646030523559,1.41350317,86.644,86.556,6.0]
[1646030523762,115.3,86.642,86.554,23.0055]
[1646030523959,1.87143496,86.639,86.554,23.0055]
[1646030524261,1.86195688,86.636,86.554,23.0055]
[1646030524560,1.52255114,86.633,86.554,23.0055]
[1646030524759,115.2,86.617,86.554,23.0055]
[1646030524980,115.2,86.615,86.554,23.0055]
[1646030525383,115.2,86.613,86.554,23.0055]
[1646030525580,115.2,86.611,86.554,23.0055]
[1646030525777,115.2,86.609,86.554,23.0055]
[1646030525979,115.3,86.607,86.554,23.0055]
[1646030526179,6.0,86.606,86.554,23.0055]
[1646030526781,6.0,86.617,86.554,23.0055]
[1646030527178,121.3,86.617,86.554,23.0055]
[1646030528580,121.3,86.617,86.54,8.15]
[1646030528782,1.5547907,86.609,86.54,8.15]
[1646030529001,115.3,86.599,86.54,8.15]
[1646030529182,115.3,86.597,86.54,8.15]
[1646030529385,115.3,86.595,86.54,8.15]
[1646030529586,54.48993457,86.589,86.54,8.15]
[1646030529786,6.0,86.588,86.54,8.15]
[1646030530182,8.74678921,86.588,86.54,8.15]
[1646030530384,2.74678921,86.587,86.54,8.15]
[1646030530584,6.0,86.586,86.54,8.15]
[1646030530984,2.74678921,86.585,86.54,8.15]
[1646030531185,54.48993457,86.589,86.54,8.15]
[1646030531385,2.74678921,86.603,86.54,8.15]
[1646030531586,6.0,86.602,86.541,8.74678921]
[1646030531786,6.0,86.613,86.541,11.34105005]
[1646030531985,6.0,86.613,86.542,22.9266]
[1646030532186,6.0,86.613,86.543,8.75831314]
[1646030532384,57.38973968,86.621,86.545,2.89471046]
[1646030532585,6.0,86.62,86.546,6.0]
[1646030534288,115.3,86.619,86.546,6.0]
[1646030534488,115.3,86.609,86.544,27.74247614]
[1646030534685,6.0,86.608,86.544,27.74247614]
[1646030534886,115.3,86.607,86.542,22.9266]
[1646030535088,6.0,86.606,86.542,22.9266]
[1646030536485,121.3,86.608,86.542,22.9266]
[1646030536988,6.0,86.608,86.542,22.9266]
[1646030537188,6.0,86.609,86.542,22.9266]
[1646030537791,115.3,86.608,86.542,22.9266]
[1646030537988,34.8078,86.61,86.54,8.15]
[1646030537989,115.3,86.599,86.54,8.15]
[1646030538390,121.3,86.598,86.54,8.15]
[1646030538788,138.36240842,86.598,86.54,8.15]
[1646030539190,17.3424,86.59,86.54,8.15]
[1646030539389,52.32855634,86.588,86.54,8.15]
[1646030539591,6.0,86.587,86.54,8.15]
[1646030539988,52.32855634,86.588,86.54,8.15]
[1646030540593,4.62,86.621,86.54,8.15]
[1646030540791,24.411,86.639,86.541,30.3674]
[1646030540992,24.411,86.639,86.542,2.31199481]
[1646030541392,115.3,86.638,86.543,6.0]
[1646030541594,115.3,86.629,86.544,24.8955]
[1646030541792,115.3,86.627,86.545,6.0]
[1646030541991,115.3,86.627,86.544,24.8955]
[1646030541992,115.3,86.625,86.544,24.8955]
[1646030542195,115.3,86.619,86.544,24.8955]
[1646030542392,115.3,86.617,86.544,24.8955]
[1646030542692,7.70402951,86.618,86.544,24.8955]
[1646030542693,1.35814739,86.614,86.545,32.40223922]
[1646030542891,115.3,86.61,86.545,32.40223922]
[1646030543093,115.3,86.608,86.545,32.40223922]
[1646030543293,17.3399,86.6,86.545,32.40223922]
[1646030543493,6.0,86.599,86.545,32.40223922]
[1646030543694,6.0,86.599,86.541,24.3674]
[1646030544697,6.0,86.599,86.542,27.301351]
[1646030545298,2.74678921,86.598,86.542,27.301351]
[1646030545496,6.0,86.597,86.542,27.301351]
[1646030546097,6.0,86.599,86.542,27.301351]
[1646030548101,23.2662,86.61,86.542,27.301351]
[1646030548300,6.0,86.609,86.542,27.301351]
[1646030548901,51.72130521,86.611,86.543,2.50991258]
[1646030549303,6.0,86.61,86.543,2.50991258]
[1646030550302,6.0,86.61,86.544,6.0]
[1646030550502,51.72130521,86.611,86.544,6.0]
[1646030550903,6.0,86.61,86.544,6.0]
[1646030551129,6.0,86.61,86.543,6.0]
[1646030551704,115.3,86.609,86.543,6.0]
[1646030552005,121.3,86.608,86.541,24.3674]
[1646030552204,124.04678921,86.608,86.541,24.3674]
[1646030552405,121.3,86.608,86.541,24.3674]
[1646030552706,2.74678921,86.607,86.541,24.3674]
[1646030552905,6.0,86.606,86.542,31.79889014]
[1646030553506,17.3398,86.6,86.542,31.79889014]
[1646030553707,6.0,86.599,86.542,31.79889014]
[1646030554107,121.3,86.599,86.542,31.79889014]
[1646030554308,2.74678921,86.598,86.542,31.79889014]
[1646030554507,6.0,86.597,86.542,31.79889014]
[1646030555108,6.0,86.597,86.541,24.3674]
[1646030555510,2.74678921,86.597,86.541,24.3674]
[1646030555709,6.0,86.596,86.541,24.3674]
[1646030557516,6.0,86.599,86.541,24.3674]
[1646030558514,6.0,86.599,86.541,27.09323572]
[1646030558730,6.0,86.607,86.541,27.09323572]
[1646030558930,6.0,86.607,86.542,3.00741032]
[1646030559131,8.74678921,86.607,86.542,3.00741032]
[1646030562136,115.3,86.599,86.541,24.3674]
[1646030562336,115.3,86.597,86.541,24.3674]
[1646030562536,6.0,86.596,86.541,24.3674]
[1646030562939,8.74678921,86.596,86.541,24.3674]
[1646030563139,115.3,86.589,86.502,3.006738]
[1646030563338,115.3,86.587,86.518,22.5858]
[1646030563549,115.3,86.585,86.518,22.5858]
[1646030563738,115.3,86.579,86.518,22.5858]
[1646030563940,115.3,86.577,86.518,22.5858]
[1646030564141,17.3464,86.57,86.501,4.62]
[1646030564339,115.3,86.559,86.501,4.62]
[1646030564540,115.3,86.557,86.492,24.2001]
[1646030564740,6.0,86.556,86.492,24.2001]
[1646030564939,8.74678921,86.556,86.492,24.2001]
[1646030565139,115.3,86.555,86.492,24.2001]
[1646030565342,10.623,86.554,86.492,24.2001]
[1646030565539,115.3,86.549,86.492,24.2001]
[1646030565742,115.3,86.547,86.492,24.2001]
[1646030565939,115.3,86.545,86.492,24.2001]
[1646030566139,115.3,86.543,86.439,2.98445982]
[1646030566340,6.0,86.546,86.43,33.9931]
[1646030566341,116.83720772,86.539,86.441,2.63465028]
[1646030566540,116.83720772,86.539,86.42,16.64]
[1646030566541,1.50181324,86.536,86.414,2.27080008]
[1646030566740,4.625,86.535,86.415,47.4272]
[1646030566943,1.51719664,86.518,86.415,47.4272]
[1646030567141,1.38140716,86.516,86.416,31.96706399]
[1646030567340,1.65975068,86.513,86.416,31.96706399]
[1646030567542,115.3,86.499,86.416,31.96706399]
[1646030567745,115.3,86.497,86.415,47.4272]
[1646030567943,6.0,86.496,86.416,8.65211692]
[1646030568346,6.0,86.497,86.416,11.39890613]
[1646030568543,6.0,86.51,86.416,11.39890613]
[1646030568744,6.0,86.51,86.417,33.61248252]
[1646030568945,6.0,86.51,86.418,8.53017726]
[1646030569243,115.3,86.509,86.418,8.53017726]
[1646030569444,6.0,86.508,86.42,17.3568]
[1646030569645,6.0,86.508,86.421,8.33780104]
[1646030569848,33.9968,86.52,86.422,115.3]
[1646030570047,22.8934,86.535,86.423,8.74682365]
[1646030570247,22.8934,86.535,86.423,36.65547893]
[1646030570545,1.76431172,86.559,86.425,2.49010011]
[1646030570746,16.64,86.55,86.425,2.49010011]
[1646030570946,16.64,86.55,86.427,2.28635264]
[1646030571148,115.3,86.549,86.428,6.0]
[1646030571348,115.3,86.547,86.43,2.55862564]
[1646030571547,115.3,86.539,86.431,9.11277404]
[1646030571746,115.3,86.529,86.431,9.11277404]
[1646030571947,115.3,86.527,86.431,9.11277404]
[1646030572146,115.3,86.525,86.431,9.11277404]
[1646030572346,60.60113441,86.522,86.431,9.11277404]
[1646030572650,6.0,86.521,86.441,2.3620842]
[1646030572847,6.0,86.521,86.442,6.0]
[1646030573046,60.60113441,86.522,86.443,24.58009084]
[1646030573246,60.60113441,86.522,86.444,2.40701188]
[1646030573448,60.60113441,86.522,86.445,6.0]
[1646030573648,4.625,86.549,86.46,17.3513]
[1646030573848,6.0,86.548,86.462,2.4547939]
[1646030574047,4.624,86.547,86.463,6.0]
[1646030574248,6.0,86.546,86.463,6.0]
[1646030574447,6.0,86.546,86.462,2.4547939]
[1646030574653,51.00765212,86.545,86.462,2.4547939]
[1646030574846,6.0,86.544,86.462,2.4547939]
[1646030575649,6.0,86.544,86.463,6.0]
[1646030576348,6.0,86.544,86.462,2.4547939]
[1646030577350,6.0,86.544,86.463,6.0]
[1646030577553,6.0,86.544,86.462,2.4547939]
[1646030577854,6.0,86.544,86.461,47.3236]
[1646030577855,66.83964175,86.557,86.47,17.3498]
[1646030578053,28.29682634,86.579,86.471,2.37809118]
[1646030578253,24.27574175,86.578,86.472,6.0]
[1646030578659,55.8575802,86.577,86.474,28.67255026]
[1646030578855,6.0,86.576,86.475,30.7838]
[1646030579054,6.0,86.576,86.476,2.97600222]
[1646030579256,6.0,86.576,86.477,6.0]
[1646030579457,18.27574175,86.575,86.49,17.3445]